[Event "*** Titled Tuesday Blitz"]
[Site "Chess.com"]
[Date "2020.04.28"]
[Round "2"]
[White "Suleyman_Chess06"]
[Black "nadirsm"]
[Result "0-1"]
[WhiteElo "2375"]
[BlackElo "2103"]
[TimeControl "180+1"]
[EndTime "10:18:44 PDT"]
[Termination "nadirsm won by resignation"]

1. d4 {[%clk 0:03:00.7]} 1... d5 {[%clk 0:02:59.1]} 2. Nf3 {[%clk 0:03:01.4]}
2... Bf5 {[%clk 0:02:59.6]} 3. Bf4 {[%clk 0:03:01.8]} 3... e6 {[%clk 0:03:00.2]}
4. e3 {[%clk 0:03:02.3]} 4... Bd6 {[%clk 0:03:00.8]} 5. Bg3 {[%clk 0:03:01.6]}
5... Nf6 {[%clk 0:03:00.5]} 6. Bd3 {[%clk 0:03:01.7]} 6... c6 {[%clk 0:02:55.3]}
7. O-O {[%clk 0:03:00.1]} 7... O-O {[%clk 0:02:54.3]} 8. Ne5 {[%clk 0:02:59.1]}
8... Qe7 {[%clk 0:02:45.4]} 9. Nd2 {[%clk 0:02:58.7]} 9... Nbd7 {[%clk 0:02:43]}
10. f4 {[%clk 0:02:58.7]} 10... Ne4 {[%clk 0:02:32.9]} 11. Qe2 {[%clk
0:02:51.6]} 11... f6 {[%clk 0:02:30]} 12. Nef3 {[%clk 0:02:51]} 12... Nxd2
{[%clk 0:02:24.8]} 13. Qxd2 {[%clk 0:02:50.4]} 13... Bxd3 {[%clk 0:02:22.1]} 14.
cxd3 {[%clk 0:02:51.3]} 14... e5 {[%clk 0:02:22.9]} 15. dxe5 {[%clk 0:02:32.1]}
15... fxe5 {[%clk 0:02:22.9]} 16. Rae1 {[%clk 0:02:27]} 16... Rae8 {[%clk
0:02:12.3]} 17. d4 {[%clk 0:02:23.9]} 17... exf4 {[%clk 0:02:00.9]} 18. exf4
{[%clk 0:02:23.6]} 18... Qd8 {[%clk 0:01:50.4]} 19. Ne5 {[%clk 0:02:17.4]} 19...
Nf6 {[%clk 0:01:50.6]} 20. Qd3 {[%clk 0:02:15.5]} 20... Ne4 {[%clk 0:01:50.3]}
21. Rxe4 {[%clk 0:02:15]} 21... dxe4 {[%clk 0:01:46.9]} 22. Qc4+ {[%clk
0:02:15.3]} 22... Kh8 {[%clk 0:01:44.4]} 23. Nf7+ {[%clk 0:02:15.9]} 23... Rxf7
{[%clk 0:01:44.8]} 24. Qxf7 {[%clk 0:02:16.8]} 24... e3 {[%clk 0:01:39.2]} 25.
Re1 {[%clk 0:02:12.8]} 25... Bb4 {[%clk 0:01:27.6]} 26. Re2 {[%clk 0:02:09.8]}
26... Bd2 {[%clk 0:01:22.6]} 27. Bh4 {[%clk 0:02:03.6]} 27... Rf8 {[%clk
0:01:11]} 28. Bxd8 {[%clk 0:01:14.4]} 28... Rxf7 {[%clk 0:01:11.2]} 29. Bh4
{[%clk 0:01:13.4]} 29... Rxf4 {[%clk 0:01:08.8]} 30. Be1 {[%clk 0:01:13.9]}
30... Rxd4 {[%clk 0:01:03.3]} 31. Bxd2 {[%clk 0:01:14.1]} 31... Rxd2 {[%clk
0:01:03]} 32. Rxe3 {[%clk 0:01:14.1]} 32... h6 {[%clk 0:01:01.3]} 33. Rb3 {[%clk
0:01:12.7]} 33... b6 {[%clk 0:01:00.8]} 34. Ra3 {[%clk 0:01:10.2]} 34... a5
{[%clk 0:01:00.5]} 35. Rc3 {[%clk 0:01:07.7]} 35... Rxb2 {[%clk 0:00:59]} 36.
Rxc6 {[%clk 0:01:07.9]} 36... b5 {[%clk 0:00:59.4]} 37. Rc5 {[%clk 0:01:05.5]}
37... a4 {[%clk 0:00:55.8]} 38. a3 {[%clk 0:01:05.1]} 38... Kh7 {[%clk
0:00:56.1]} 39. h3 {[%clk 0:01:05]} 39... Kg6 {[%clk 0:00:56.2]} 40. Kh2 {[%clk
0:01:05.4]} 40... Kf6 {[%clk 0:00:56.4]} 41. Rc7 {[%clk 0:01:04.5]} 41... Rb3
{[%clk 0:00:55.8]} 42. Rb7 {[%clk 0:01:04.7]} 42... g5 {[%clk 0:00:55.5]} 43.
Rb6+ {[%clk 0:01:04.1]} 43... Kf5 {[%clk 0:00:55.5]} 44. g4+ {[%clk 0:00:47.4]}
44... Ke4 {[%clk 0:00:50.6]} 45. Rxh6 {[%clk 0:00:34.8]} 45... Rxa3 {[%clk
0:00:50.2]} 46. Rg6 {[%clk 0:00:35.1]} 46... Rb3 {[%clk 0:00:49.8]} 47. Rxg5
{[%clk 0:00:34.8]} 47... a3 {[%clk 0:00:50.2]} 48. Rg8 {[%clk 0:00:35.5]} 48...
a2 {[%clk 0:00:47.7]} 49. Ra8 {[%clk 0:00:34]} 49... Rb2+ {[%clk 0:00:48]} 50.
Kg3 {[%clk 0:00:33.7]} 50... b4 {[%clk 0:00:48.9]} 51. h4 {[%clk 0:00:34.2]}
51... b3 {[%clk 0:00:49.1]} 52. h5 {[%clk 0:00:35.1]} 52... Rb1 {[%clk
0:00:49.2]} 53. Re8+ {[%clk 0:00:31.7]} 53... Kd5 {[%clk 0:00:48.4]} 54. Ra8
{[%clk 0:00:28.5]} 54... a1=Q {[%clk 0:00:48.3]} 55. Rxa1 {[%clk 0:00:28.4]}
55... Rxa1 {[%clk 0:00:49.2]} 56. h6 {[%clk 0:00:29.3]} 56... Rh1 {[%clk
0:00:47.4]} 57. g5 {[%clk 0:00:29.9]} 57... Ke6 {[%clk 0:00:45.9]} 58. g6 {[%clk
0:00:30.8]} 58... Rxh6 {[%clk 0:00:44.9]} 59. g7 {[%clk 0:00:30.9]} 59... Rg6+
{[%clk 0:00:44.8]} 0-1

[Event "*** Titled Tuesday Blitz"]
[Site "Chess.com"]
[Date "2020.04.28"]
[Round "2"]
[White "blobica"]
[Black "Maghalashvili"]
[Result "1-0"]
[WhiteElo "2550"]
[BlackElo "2789"]
[TimeControl "180+1"]
[EndTime "10:18:45 PDT"]
[Termination "blobica won on time"]

1. e4 {[%clk 0:02:58.4]} 1... c5 {[%clk 0:02:59.5]} 2. Nf3 {[%clk 0:02:58.3]}
2... d6 {[%clk 0:02:59.9]} 3. d4 {[%clk 0:02:57.5]} 3... cxd4 {[%clk 0:03:00.8]}
4. Qxd4 {[%clk 0:02:56.9]} 4... Nc6 {[%clk 0:02:59.3]} 5. Bb5 {[%clk 0:02:56.1]}
5... Bd7 {[%clk 0:02:59.5]} 6. Qe3 {[%clk 0:02:54.4]} 6... g6 {[%clk 0:02:54.8]}
7. c4 {[%clk 0:02:53.7]} 7... Bg7 {[%clk 0:02:53.2]} 8. O-O {[%clk 0:02:53.6]}
8... Nf6 {[%clk 0:02:52.2]} 9. h3 {[%clk 0:02:52.1]} 9... O-O {[%clk 0:02:52.2]}
10. Nc3 {[%clk 0:02:51.6]} 10... Rc8 {[%clk 0:02:49.5]} 11. Bd2 {[%clk
0:02:50.2]} 11... a6 {[%clk 0:02:37.5]} 12. Bxc6 {[%clk 0:02:49.3]} 12... Bxc6
{[%clk 0:02:33.4]} 13. Rac1 {[%clk 0:02:48]} 13... b5 {[%clk 0:02:33]} 14. cxb5
{[%clk 0:02:45.4]} 14... axb5 {[%clk 0:02:32.1]} 15. Nd4 {[%clk 0:02:42.9]}
15... b4 {[%clk 0:02:27]} 16. Nxc6 {[%clk 0:02:41.2]} 16... Rxc6 {[%clk
0:02:25.9]} 17. Nd5 {[%clk 0:02:14.3]} 17... Nxd5 {[%clk 0:02:21.5]} 18. exd5
{[%clk 0:02:12.2]} 18... Rxc1 {[%clk 0:02:20.4]} 19. Rxc1 {[%clk 0:02:05.4]}
19... Bxb2 {[%clk 0:02:07.1]} 20. Rb1 {[%clk 0:02:03]} 20... Be5 {[%clk
0:01:58.5]} 21. Bxb4 {[%clk 0:02:00.2]} 21... Qa8 {[%clk 0:01:55.4]} 22. Qb3
{[%clk 0:01:51.9]} 22... Rb8 {[%clk 0:01:51.9]} 23. a3 {[%clk 0:01:51.6]} 23...
Qa6 {[%clk 0:01:42.1]} 24. Rc1 {[%clk 0:01:43.1]} 24... Qe2 {[%clk 0:01:30]} 25.
Qc4 {[%clk 0:01:38.2]} 25... Qxc4 {[%clk 0:01:26.6]} 26. Rxc4 {[%clk 0:01:37.2]}
26... Rb5 {[%clk 0:01:27.2]} 27. f4 {[%clk 0:00:45.4]} 27... Bf6 {[%clk
0:01:25.8]} 28. a4 {[%clk 0:00:43.5]} 28... Rxd5 {[%clk 0:01:22.6]} 29. a5
{[%clk 0:00:43.6]} 29... Rd1+ {[%clk 0:01:03.6]} 30. Kf2 {[%clk 0:00:42.7]}
30... Ra1 {[%clk 0:01:03.6]} 31. g4 {[%clk 0:00:37.9]} 31... h6 {[%clk
0:00:51.1]} 32. Kf3 {[%clk 0:00:25.5]} 32... Kg7 {[%clk 0:00:46.6]} 33. h4
{[%clk 0:00:23.5]} 33... g5 {[%clk 0:00:24]} 34. hxg5 {[%clk 0:00:23]} 34...
hxg5 {[%clk 0:00:24]} 35. fxg5 {[%clk 0:00:23.1]} 35... Be5 {[%clk 0:00:24.4]}
36. Rc7 {[%clk 0:00:21]} 36... e6 {[%clk 0:00:20]} 37. Rd7 {[%clk 0:00:19.1]}
37... d5 {[%clk 0:00:12.9]} 38. Rb7 {[%clk 0:00:10.3]} 38... Kg6 {[%clk
0:00:11.1]} 39. Bd2 {[%clk 0:00:09.8]} 39... Ra3+ {[%clk 0:00:11.1]} 40. Ke2
{[%clk 0:00:09.1]} 40... Bd4 {[%clk 0:00:11]} 41. Rb5 {[%clk 0:00:08.5]} 41...
Kg7 {[%clk 0:00:06.2]} 42. Rb7 {[%clk 0:00:07.8]} 42... Kg6 {[%clk 0:00:04.7]}
43. Rb8 {[%clk 0:00:08]} 43... e5 {[%clk 0:00:03.9]} 44. Rd8 {[%clk 0:00:07.4]}
44... Ra2 {[%clk 0:00:02.5]} 45. Kd1 {[%clk 0:00:05.5]} 45... e4 {[%clk
0:00:01.1]} 46. Rxd5 {[%clk 0:00:05.4]} 46... Ra1+ {[%clk 0:00:02]} 47. Ke2
{[%clk 0:00:04.8]} 47... Bb2 {[%clk 0:00:02.9]} 48. Rb5 {[%clk 0:00:03.9]} 48...
Bd4 {[%clk 0:00:01.6]} 49. Rb4 {[%clk 0:00:04]} 1-0

[Event "*** Titled Tuesday Blitz"]
[Site "Chess.com"]
[Date "2020.04.28"]
[Round "2"]
[White "capatl"]
[Black "doctorcristian"]
[Result "1-0"]
[WhiteElo "2647"]
[BlackElo "2318"]
[TimeControl "180+1"]
[EndTime "10:18:45 PDT"]
[Termination "capatl won on time"]

1. c4 {[%clk 0:02:55.2]} 1... Nf6 {[%clk 0:02:57.3]} 2. Nc3 {[%clk 0:02:51.8]}
2... g6 {[%clk 0:02:57]} 3. g3 {[%clk 0:02:45.2]} 3... Bg7 {[%clk 0:02:55.1]} 4.
Bg2 {[%clk 0:02:45.1]} 4... O-O {[%clk 0:02:53.9]} 5. Nf3 {[%clk 0:02:31.3]}
5... c5 {[%clk 0:02:25.9]} 6. O-O {[%clk 0:02:28.1]} 6... Nc6 {[%clk 0:02:23.7]}
7. d4 {[%clk 0:02:20.7]} 7... cxd4 {[%clk 0:02:23.3]} 8. Nxd4 {[%clk 0:02:21.6]}
8... Ng4 {[%clk 0:02:22.5]} 9. e3 {[%clk 0:02:15.1]} 9... Nge5 {[%clk
0:02:17.6]} 10. b3 {[%clk 0:02:11.8]} 10... f5 {[%clk 0:02:10.2]} 11. Bb2 {[%clk
0:02:05.2]} 11... Nf7 {[%clk 0:01:59.1]} 12. Qd2 {[%clk 0:01:53.3]} 12... Nxd4
{[%clk 0:01:54.4]} 13. exd4 {[%clk 0:01:53]} 13... a5 {[%clk 0:01:45.8]} 14.
Rad1 {[%clk 0:01:51.8]} 14... e6 {[%clk 0:01:43]} 15. d5 {[%clk 0:01:28.3]}
15... e5 {[%clk 0:01:40.8]} 16. d6 {[%clk 0:01:21.2]} 16... Ra6 {[%clk
0:01:39.5]} 17. Nb5 {[%clk 0:01:03.6]} 17... a4 {[%clk 0:01:31.3]} 18. b4 {[%clk
0:01:00.8]} 18... a3 {[%clk 0:01:27.8]} 19. Bc3 {[%clk 0:00:39.4]} 19... Re8
{[%clk 0:01:10.3]} 20. Rfe1 {[%clk 0:00:38.9]} 20... e4 {[%clk 0:01:09.3]} 21.
c5 {[%clk 0:00:35.4]} 21... b6 {[%clk 0:01:01.8]} 22. Nc7 {[%clk 0:00:33.4]}
22... bxc5 {[%clk 0:01:00.9]} 23. bxc5 {[%clk 0:00:33.1]} 23... Ne5 {[%clk
0:00:47.7]} 24. Bf1 {[%clk 0:00:30.3]} 24... Rc6 {[%clk 0:00:42.9]} 25. Bxe5
{[%clk 0:00:27.7]} 25... Rxe5 {[%clk 0:00:38.4]} 26. Qb4 {[%clk 0:00:17.4]}
26... Rexc5 {[%clk 0:00:32.6]} 27. Qxa3 {[%clk 0:00:17.5]} 27... Be5 {[%clk
0:00:30.4]} 28. Qb3+ {[%clk 0:00:15.4]} 28... Kg7 {[%clk 0:00:29.7]} 29. Bb5
{[%clk 0:00:15.3]} 29... Rxd6 {[%clk 0:00:25.5]} 30. Rxd6 {[%clk 0:00:16.2]}
30... Bxd6 {[%clk 0:00:20.3]} 31. Nd5 {[%clk 0:00:16]} 31... Qg8 {[%clk
0:00:17.8]} 32. Qb2+ {[%clk 0:00:15.5]} 32... Kh6 {[%clk 0:00:17.2]} 33. Qd2+
{[%clk 0:00:15.3]} 33... g5 {[%clk 0:00:17.1]} 34. Ne3 {[%clk 0:00:15.3]} 34...
Qe6 {[%clk 0:00:13.9]} 35. Bc4 {[%clk 0:00:12.5]} 35... Qg6 {[%clk 0:00:11.2]}
36. Rd1 {[%clk 0:00:12.1]} 36... Be5 {[%clk 0:00:08.6]} 37. Bb3 {[%clk 0:00:11]}
37... d6 {[%clk 0:00:06.2]} 38. Qb4 {[%clk 0:00:10.8]} 38... f4 {[%clk 0:00:05]}
39. Nd5 {[%clk 0:00:10.8]} 39... e3 {[%clk 0:00:01.1]} 40. fxe3 {[%clk
0:00:09.1]} 40... fxg3 {[%clk 0:00:01.9]} 41. hxg3 {[%clk 0:00:08.1]} 1-0

[Event "*** Titled Tuesday Blitz"]
[Site "Chess.com"]
[Date "2020.04.28"]
[Round "2"]
[White "gmelviro"]
[Black "GMMarcinDziuba"]
[Result "0-1"]
[WhiteElo "2151"]
[BlackElo "2610"]
[TimeControl "180+1"]
[EndTime "10:18:46 PDT"]
[Termination "GMMarcinDziuba won by resignation"]

1. c4 {[%clk 0:03:00.9]} 1... c5 {[%clk 0:02:58]} 2. g3 {[%clk 0:03:00.3]} 2...
Nc6 {[%clk 0:02:58]} 3. Bg2 {[%clk 0:03:00.5]} 3... g6 {[%clk 0:02:57.1]} 4. Nc3
{[%clk 0:03:00.6]} 4... Bg7 {[%clk 0:02:57.5]} 5. e3 {[%clk 0:03:01]} 5... e5
{[%clk 0:02:57.4]} 6. Nge2 {[%clk 0:03:00.9]} 6... Nge7 {[%clk 0:02:57.5]} 7.
O-O {[%clk 0:02:55.9]} 7... O-O {[%clk 0:02:57.5]} 8. d3 {[%clk 0:02:52.5]} 8...
d6 {[%clk 0:02:57.5]} 9. a3 {[%clk 0:02:51.1]} 9... Be6 {[%clk 0:02:55.4]} 10.
Nd5 {[%clk 0:02:46.1]} 10... Qd7 {[%clk 0:02:50.6]} 11. Re1 {[%clk 0:02:40.1]}
11... Bh3 {[%clk 0:02:46.1]} 12. Bh1 {[%clk 0:02:39.8]} 12... Nxd5 {[%clk
0:02:46.2]} 13. cxd5 {[%clk 0:02:39.2]} 13... Ne7 {[%clk 0:02:45.6]} 14. Nc3
{[%clk 0:02:39.8]} 14... f5 {[%clk 0:02:41.3]} 15. Rb1 {[%clk 0:02:18.1]} 15...
Rac8 {[%clk 0:02:27.8]} 16. Bd2 {[%clk 0:02:16.1]} 16... g5 {[%clk 0:02:18.4]}
17. Qa4 {[%clk 0:01:51.8]} 17... Qxa4 {[%clk 0:02:04.5]} 18. Nxa4 {[%clk
0:01:51]} 18... b5 {[%clk 0:02:01.2]} 19. Nc3 {[%clk 0:01:49.4]} 19... a6 {[%clk
0:02:01.3]} 20. e4 {[%clk 0:01:41.4]} 20... f4 {[%clk 0:01:52.3]} 21. Bg2 {[%clk
0:01:34.2]} 21... Bd7 {[%clk 0:01:27.4]} 22. Rec1 {[%clk 0:01:25.8]} 22... g4
{[%clk 0:01:18.3]} 23. b4 {[%clk 0:01:17.4]} 23... f3 {[%clk 0:01:16.1]} 24. Bf1
{[%clk 0:01:16.2]} 24... h5 {[%clk 0:01:03]} 25. a4 {[%clk 0:00:54.1]} 25...
cxb4 {[%clk 0:00:54.3]} 26. Rxb4 {[%clk 0:00:53.2]} 26... a5 {[%clk 0:00:54.7]}
27. Rbb1 {[%clk 0:00:48.3]} 27... b4 {[%clk 0:00:55]} 28. Nb5 {[%clk 0:00:45.8]}
28... Bxb5 {[%clk 0:00:45.7]} 29. axb5 {[%clk 0:00:45.4]} 29... Rxc1 {[%clk
0:00:45]} 30. Rxc1 {[%clk 0:00:44.8]} 30... Rb8 {[%clk 0:00:44.7]} 31. Rc7
{[%clk 0:00:27.5]} 31... b3 {[%clk 0:00:38.4]} 32. Bc1 {[%clk 0:00:20.8]} 32...
Rc8 {[%clk 0:00:31.7]} 33. Rxc8+ {[%clk 0:00:19.5]} 33... Nxc8 {[%clk
0:00:31.5]} 34. d4 {[%clk 0:00:17.8]} 34... exd4 {[%clk 0:00:28.5]} 35. Bd3
{[%clk 0:00:18.1]} 35... a4 {[%clk 0:00:28.4]} 36. Kf1 {[%clk 0:00:18.4]} 36...
Nb6 {[%clk 0:00:18.5]} 37. Ke1 {[%clk 0:00:18.1]} 37... Be5 {[%clk 0:00:13.6]}
38. Kd1 {[%clk 0:00:17.5]} 38... Kf7 {[%clk 0:00:13.8]} 39. Ba3 {[%clk
0:00:16.4]} 39... Ke7 {[%clk 0:00:13.5]} 40. Kc1 {[%clk 0:00:16.6]} 40... Bf6
{[%clk 0:00:12.4]} 41. Kb2 {[%clk 0:00:16.8]} 41... Kd7 {[%clk 0:00:12.7]} 42.
Bb4 {[%clk 0:00:15.9]} 42... Bg5 {[%clk 0:00:11.8]} 43. Be1 {[%clk 0:00:11.2]}
43... Kc7 {[%clk 0:00:10.3]} 44. Bb1 {[%clk 0:00:10.8]} 44... Kb7 {[%clk
0:00:10.5]} 45. Bd3 {[%clk 0:00:11]} 45... Nd7 {[%clk 0:00:10.4]} 46. Ka3 {[%clk
0:00:10.5]} 46... Nc5 {[%clk 0:00:09.8]} 47. Bb1 {[%clk 0:00:09.1]} 47... d3
{[%clk 0:00:10.3]} 48. Bxd3 {[%clk 0:00:05.9]} 48... Nxd3 {[%clk 0:00:09.8]} 49.
Bc3 {[%clk 0:00:04.7]} 49... Bc1+ {[%clk 0:00:07.4]} 50. Kxa4 {[%clk 0:00:05]}
50... b2 {[%clk 0:00:07.9]} 51. Bxb2 {[%clk 0:00:05.3]} 51... Bxb2 {[%clk
0:00:08.7]} 52. Kb3 {[%clk 0:00:04.6]} 52... Be5 {[%clk 0:00:09.3]} 53. Kc4
{[%clk 0:00:04.7]} 53... Nxf2 {[%clk 0:00:10]} 0-1

[Event "*** Titled Tuesday Blitz"]
[Site "Chess.com"]
[Date "2020.04.28"]
[Round "2"]
[White "GracefulYear"]
[Black "ShadowJolteon"]
[Result "1/2-1/2"]
[WhiteElo "2470"]
[BlackElo "2261"]
[TimeControl "180+1"]
[EndTime "10:18:47 PDT"]
[Termination "Game drawn by repetition"]

1. d4 {[%clk 0:03:00.9]} 1... Nf6 {[%clk 0:02:59.5]} 2. c4 {[%clk 0:03:00.8]}
2... e6 {[%clk 0:02:59.6]} 3. Nc3 {[%clk 0:03:00.9]} 3... Bb4 {[%clk 0:02:59.4]}
4. Bd2 {[%clk 0:03:00.3]} 4... b6 {[%clk 0:02:58.9]} 5. Nf3 {[%clk 0:02:59.3]}
5... Bb7 {[%clk 0:02:58.8]} 6. e3 {[%clk 0:02:59.5]} 6... O-O {[%clk 0:02:58.4]}
7. Be2 {[%clk 0:02:59.8]} 7... d5 {[%clk 0:02:58.3]} 8. O-O {[%clk 0:02:59.7]}
8... Nbd7 {[%clk 0:02:57.7]} 9. Rc1 {[%clk 0:02:58.8]} 9... c5 {[%clk
0:02:57.3]} 10. a3 {[%clk 0:02:57.3]} 10... Bxc3 {[%clk 0:02:52.6]} 11. Bxc3
{[%clk 0:02:56.3]} 11... Ne4 {[%clk 0:02:52.9]} 12. dxc5 {[%clk 0:02:37.6]}
12... Nxc3 {[%clk 0:02:41.9]} 13. Rxc3 {[%clk 0:02:38.5]} 13... Nxc5 {[%clk
0:02:41.6]} 14. b4 {[%clk 0:02:15.2]} 14... Ne4 {[%clk 0:02:36.1]} 15. Rc1
{[%clk 0:02:15.2]} 15... Qf6 {[%clk 0:02:33.5]} 16. Bd3 {[%clk 0:02:02.7]} 16...
dxc4 {[%clk 0:02:29.7]} 17. Bxc4 {[%clk 0:02:02.3]} 17... Rfd8 {[%clk
0:02:28.8]} 18. Qe2 {[%clk 0:02:02.4]} 18... Nc3 {[%clk 0:02:26.4]} 19. Qc2
{[%clk 0:01:54.7]} 19... Bxf3 {[%clk 0:02:14.5]} 20. gxf3 {[%clk 0:01:32.8]}
20... Qxf3 {[%clk 0:01:12.9]} 21. Qxc3 {[%clk 0:01:21]} 21... Qg4+ {[%clk
0:01:13]} 22. Kh1 {[%clk 0:01:20.5]} 22... Qf3+ {[%clk 0:01:13.3]} 23. Kg1
{[%clk 0:01:20.6]} 23... Rac8 {[%clk 0:00:48.8]} 24. Qe5 {[%clk 0:00:03.2]}
24... Qg4+ {[%clk 0:00:39.5]} 25. Qg3 {[%clk 0:00:02.9]} 25... Rxc4 {[%clk
0:00:39.5]} 26. Rxc4 {[%clk 0:00:03.2]} 26... Qxc4 {[%clk 0:00:38.9]} 27. h4
{[%clk 0:00:03.7]} 27... h6 {[%clk 0:00:35.1]} 28. f3 {[%clk 0:00:03.3]} 28...
Qc3 {[%clk 0:00:33.5]} 29. e4 {[%clk 0:00:03.2]} 29... Qe3+ {[%clk 0:00:32.6]}
30. Kg2 {[%clk 0:00:02.9]} 30... Qxa3 {[%clk 0:00:33.5]} 31. Rf2 {[%clk
0:00:03.1]} 31... Qxb4 {[%clk 0:00:32.1]} 32. Qc7 {[%clk 0:00:03.5]} 32... Rd2
{[%clk 0:00:28.2]} 33. Qxa7 {[%clk 0:00:03.9]} 33... Rxf2+ {[%clk 0:00:27.2]}
34. Kxf2 {[%clk 0:00:04.8]} 34... Qc5+ {[%clk 0:00:25.8]} 35. Kg3 {[%clk
0:00:04.9]} 35... Qd6+ {[%clk 0:00:25.4]} 36. Kh3 {[%clk 0:00:05.4]} 36... b5
{[%clk 0:00:26.3]} 37. Kg2 {[%clk 0:00:05.5]} 37... b4 {[%clk 0:00:23.7]} 38.
Qa8+ {[%clk 0:00:05.3]} 38... Kh7 {[%clk 0:00:23.5]} 39. Qa4 {[%clk 0:00:05.7]}
39... Qd2+ {[%clk 0:00:20.5]} 40. Kg3 {[%clk 0:00:06]} 40... Qc3 {[%clk
0:00:19.9]} 41. Qd7 {[%clk 0:00:05.6]} 41... Qe5+ {[%clk 0:00:17.7]} 42. Kg4
{[%clk 0:00:05.1]} 42... f5+ {[%clk 0:00:16.5]} 43. exf5 {[%clk 0:00:04]} 43...
exf5+ {[%clk 0:00:17.4]} 44. Kh3 {[%clk 0:00:03.6]} 44... b3 {[%clk 0:00:16.5]}
45. Qd3 {[%clk 0:00:03.9]} 45... b2 {[%clk 0:00:15.9]} 46. Qb1 {[%clk
0:00:04.3]} 46... h5 {[%clk 0:00:14.4]} 47. Kg2 {[%clk 0:00:04.2]} 47... g6
{[%clk 0:00:12.9]} 48. Kf2 {[%clk 0:00:03.7]} 48... Qd4+ {[%clk 0:00:12.5]} 49.
Kg2 {[%clk 0:00:04]} 49... Qc3 {[%clk 0:00:12.2]} 50. Kg3 {[%clk 0:00:04.2]}
50... Qc1 {[%clk 0:00:12.1]} 51. Qa2 {[%clk 0:00:04.6]} 51... b1=Q {[%clk
0:00:12.3]} 52. Qf7+ {[%clk 0:00:04.8]} 52... Kh6 {[%clk 0:00:12.7]} 53. Qf8+
{[%clk 0:00:05.3]} 53... Kh7 {[%clk 0:00:12.8]} 54. Qf7+ {[%clk 0:00:05.8]}
54... Kh8 {[%clk 0:00:12.3]} 55. Qf8+ {[%clk 0:00:06.2]} 55... Kh7 {[%clk
0:00:12]} 56. Qf7+ {[%clk 0:00:07.1]} 1/2-1/2

[Event "*** Titled Tuesday Blitz"]
[Site "Chess.com"]
[Date "2020.04.28"]
[Round "2"]
[White "Bubar"]
[Black "Jumbo"]
[Result "0-1"]
[WhiteElo "2334"]
[BlackElo "2739"]
[TimeControl "180+1"]
[EndTime "10:18:53 PDT"]
[Termination "Jumbo won by resignation"]

1. d4 {[%clk 0:02:55.7]} 1... Nf6 {[%clk 0:02:59.3]} 2. Nf3 {[%clk 0:02:54.7]}
2... g6 {[%clk 0:02:59.4]} 3. c4 {[%clk 0:02:54]} 3... d6 {[%clk 0:02:59.7]} 4.
Nc3 {[%clk 0:02:51.6]} 4... Bf5 {[%clk 0:02:59.9]} 5. Bg5 {[%clk 0:02:48.8]}
5... Ne4 {[%clk 0:02:52.9]} 6. Bh4 {[%clk 0:02:48.5]} 6... Bg7 {[%clk 0:02:39]}
7. e3 {[%clk 0:02:46.3]} 7... c5 {[%clk 0:02:37]} 8. Bd3 {[%clk 0:02:38.9]} 8...
Nxc3 {[%clk 0:01:40.6]} 9. bxc3 {[%clk 0:02:36.4]} 9... Qa5 {[%clk 0:01:39.8]}
10. O-O {[%clk 0:02:31.4]} 10... Bd7 {[%clk 0:01:19.2]} 11. Qb3 {[%clk 0:02:21]}
11... b6 {[%clk 0:01:19.4]} 12. Be4 {[%clk 0:02:01.3]} 12... Bc6 {[%clk
0:01:18.3]} 13. d5 {[%clk 0:01:58.4]} 13... Bd7 {[%clk 0:01:13]} 14. Rfc1 {[%clk
0:01:56.3]} 14... Bf6 {[%clk 0:01:05.1]} 15. Bxf6 {[%clk 0:01:42.6]} 15... exf6
{[%clk 0:01:06]} 16. Nd2 {[%clk 0:01:42.3]} 16... Na6 {[%clk 0:00:56.8]} 17. a4
{[%clk 0:01:41.1]} 17... Nc7 {[%clk 0:00:56.8]} 18. Qc2 {[%clk 0:01:40]} 18...
O-O {[%clk 0:00:55.7]} 19. Nb3 {[%clk 0:01:39.3]} 19... Qa6 {[%clk 0:00:55.4]}
20. a5 {[%clk 0:01:39.3]} 20... Qxc4 {[%clk 0:00:38]} 21. Nd2 {[%clk 0:01:33.1]}
21... Qe2 {[%clk 0:00:28.4]} 22. Bf3 {[%clk 0:01:26.8]} 22... Qa6 {[%clk
0:00:27.3]} 23. axb6 {[%clk 0:01:23.7]} 23... Qxb6 {[%clk 0:00:26.4]} 24. Nc4
{[%clk 0:01:23.2]} 24... Qb8 {[%clk 0:00:20.4]} 25. Nxd6 {[%clk 0:01:21.1]}
25... a5 {[%clk 0:00:18.5]} 26. Rcb1 {[%clk 0:01:17.2]} 26... Qa7 {[%clk
0:00:18.3]} 27. Ne4 {[%clk 0:01:15.7]} 27... f5 {[%clk 0:00:16.3]} 28. Nf6+
{[%clk 0:01:13.1]} 28... Kg7 {[%clk 0:00:16.3]} 29. Nxd7 {[%clk 0:01:12.9]}
29... Rfd8 {[%clk 0:00:16.1]} 30. Nb6 {[%clk 0:01:11.2]} 30... Rab8 {[%clk
0:00:15.4]} 31. Nc4 {[%clk 0:01:10.5]} 31... Rxb1+ {[%clk 0:00:15.1]} 32. Qxb1
{[%clk 0:01:07.8]} 32... Nxd5 {[%clk 0:00:15.4]} 33. Bxd5 {[%clk 0:01:07.1]}
33... Rxd5 {[%clk 0:00:16.3]} 34. h4 {[%clk 0:01:06.7]} 34... Qe7 {[%clk
0:00:16]} 35. g3 {[%clk 0:01:02.6]} 35... Qd8 {[%clk 0:00:15.6]} 36. Qb2 {[%clk
0:00:59.4]} 36... h6 {[%clk 0:00:11.1]} 37. Nxa5 {[%clk 0:00:58.8]} 37... Rd7
{[%clk 0:00:09.3]} 38. c4+ {[%clk 0:00:58.5]} 38... Kh7 {[%clk 0:00:09.7]} 39.
Nb3 {[%clk 0:00:58.3]} 39... Qe7 {[%clk 0:00:07.2]} 40. Qe2 {[%clk 0:00:51.4]}
40... Kg7 {[%clk 0:00:06.1]} 41. Nd2 {[%clk 0:00:50.2]} 41... g5 {[%clk
0:00:05.5]} 42. Nf3 {[%clk 0:00:49.1]} 42... Qe4 {[%clk 0:00:03.6]} 43. hxg5
{[%clk 0:00:47]} 43... Rd6 {[%clk 0:00:04.1]} 44. Rd1 {[%clk 0:00:43.7]} 44...
Rb6 {[%clk 0:00:03.5]} 45. Nd2 {[%clk 0:00:41.3]} 45... Qc2 {[%clk 0:00:02.8]}
46. Qe1 {[%clk 0:00:37.5]} 46... hxg5 {[%clk 0:00:02.6]} 47. Nf3 {[%clk
0:00:37.6]} 47... Rh6 {[%clk 0:00:02.4]} 48. Rd2 {[%clk 0:00:36.4]} 48... Qe4
{[%clk 0:00:01.7]} 49. Kg2 {[%clk 0:00:35.6]} 49... g4 {[%clk 0:00:01.8]} 50.
Qe2 {[%clk 0:00:35.3]} 50... gxf3+ {[%clk 0:00:02.3]} 51. Qxf3 {[%clk
0:00:35.9]} 51... Rh2+ {[%clk 0:00:02.9]} 52. Kxh2 {[%clk 0:00:36.3]} 52... Qxf3
{[%clk 0:00:03.4]} 53. Rd5 {[%clk 0:00:36.8]} 53... Qxf2+ {[%clk 0:00:03.2]} 54.
Kh3 {[%clk 0:00:37.7]} 54... Qxe3 {[%clk 0:00:03]} 55. Rxf5 {[%clk 0:00:38.6]}
55... Qe4 {[%clk 0:00:03.2]} 56. Rf4 {[%clk 0:00:38.3]} 56... Qe6+ {[%clk
0:00:03.5]} 57. Kg2 {[%clk 0:00:38.2]} 57... f5 {[%clk 0:00:03.7]} 58. Kf3
{[%clk 0:00:38.7]} 58... Qe5 {[%clk 0:00:03.6]} 59. g4 {[%clk 0:00:38.9]} 59...
Qc3+ {[%clk 0:00:03.9]} 60. Kf2 {[%clk 0:00:38.8]} 60... Qd2+ {[%clk 0:00:04.1]}
61. Kg3 {[%clk 0:00:38.8]} 61... Qd3+ {[%clk 0:00:04.6]} 62. Rf3 {[%clk
0:00:38.7]} 62... Qd6+ {[%clk 0:00:05]} 63. Rf4 {[%clk 0:00:37.4]} 63... Kg6
{[%clk 0:00:05.3]} 64. gxf5+ {[%clk 0:00:36.1]} 64... Kg5 {[%clk 0:00:05.2]} 0-1